bitfinex/quotes_ETHUSD_20251026
["timestamp","ask_amount","ask_price","bid_price","bid_amount"]
[1761486263540,0.2194,4096.5,4095.3,0.2153]
[1761486263763,0.001,4096.0,4095.2,0.2153]
[1761486263932,0.1509,4095.9,4094.3,0.64449819]
[1761486264277,0.3482,4095.9,4093.9,0.64449819]
[1761486264431,2.4423085,4094.5,4094.0,0.64449819]
[1761486264631,2.65981825,4093.8,4093.2,0.85933092]
[1761486264832,2.65981825,4093.8,4092.9,1.28973514]
[1761486264833,0.2171,4093.8,4092.9,0.85933092]
[1761486265055,2.44325539,4092.9,4092.3,0.85933092]
[1761486265256,2.66257478,4092.7,4092.1,0.86133092]
[1761486265561,2.66257478,4092.7,4092.1,0.002]
[1761486265562,5.23524003,4092.7,4092.1,0.002]
[1761486265764,2.95055332,4092.2,4092.1,1e-08]
[1761486266068,4.50575332,4092.2,4092.1,1e-08]
[1761486266267,4.70075332,4092.2,4092.1,1e-08]
[1761486267084,3.17318809,4092.7,4092.1,1e-08]
[1761486267085,0.2192,4092.7,4092.1,1e-08]
[1761486267366,2.44343449,4092.6,4092.3,1.28973514]
[1761486267540,2.9504339,4092.4,4092.3,1.28973514]
[1761486267866,2.44357448,4092.4,4092.2,1.28973514]
[1761486268067,3.267,4093.4,4092.2,1.28973514]
[1761486268068,0.412,4093.4,4092.3,1.28973514]
[1761486268376,4.8232,4093.6,4092.5,0.86052182]
[1761486268377,0.412,4093.3,4092.5,0.86052182]
[1761486268546,2.44343449,4092.6,4092.5,0.86052182]
[1761486268878,2.95055332,4092.2,4092.1,1e-08]
[1761486269539,0.50688,4092.2,4092.1,1e-08]
[1761486269936,3.07295332,4092.2,4092.1,1e-08]
[1761486270276,3.81890628,4092.2,4092.1,1e-08]
[1761486270476,3.26725332,4092.2,4092.1,1e-08]
[1761486272838,6.53325332,4092.2,4092.1,1e-08]
[1761486273779,6.53425332,4092.2,4092.1,1e-08]
[1761486275190,8.08945332,4092.2,4092.1,1e-08]
[1761486275403,9.14175628,4092.2,4092.1,1e-08]
[1761486275866,2.95103114,4091.4,4091.3,0.002]
[1761486276193,7.77323114,4091.4,4091.3,0.002]
[1761486276390,2.95132987,4090.9,4090.8,1e-08]
[1761486276593,7.77352987,4090.9,4090.8,1e-08]
[1761486276891,9.26951806,4090.9,4090.8,1e-08]
[1761486277085,9.36735141,4090.9,4090.8,1e-08]
[1761486277769,9.26951806,4090.9,4090.8,1e-08]
[1761486278167,4.21954987,4090.9,4090.8,1e-08]
[1761486278387,7.48954987,4090.9,4090.8,1e-08]
[1761486278560,2.44444987,4090.9,4090.8,1e-08]
[1761486279163,2.95132987,4090.9,4090.8,1e-08]
[1761486279505,3.20572987,4090.9,4090.8,1e-08]
[1761486280088,4.09773806,4090.9,4090.8,1e-08]
[1761486280774,3.84333806,4090.9,4090.8,1e-08]
[1761486280978,2.95132987,4090.9,4090.8,1e-08]
[1761486281573,3.20572987,4090.9,4090.8,1e-08]
[1761486282114,6.47272987,4090.9,4090.8,1e-08]
[1761486283077,6.47372987,4090.9,4090.8,1e-08]
[1761486283283,3.20672987,4090.9,4090.8,1e-08]
[1761486283482,6.47172987,4090.9,4090.8,1e-08]
[1761486283720,7.36333806,4090.9,4090.8,1e-08]
[1761486285174,6.85645806,4090.9,4090.8,1e-08]
[1761486285596,7.36333806,4090.9,4090.8,1e-08]
[1761486286163,9.04093806,4090.9,4090.8,1e-08]
[1761486286797,9.03793806,4090.9,4090.8,1e-08]
[1761486287270,5.77593806,4090.9,4090.8,1e-08]
[1761486287689,9.03993806,4090.9,4090.8,1e-08]
[1761486288390,5.77593806,4090.9,4090.8,1e-08]
[1761486288595,9.03993806,4090.9,4090.8,1e-08]
[1761486288778,5.77593806,4090.9,4090.8,1e-08]
[1761486288973,7.89292987,4090.9,4090.8,1e-08]
[1761486289165,7.89392987,4090.9,4090.8,1e-08]
[1761486289514,5.83084987,4090.9,4090.8,1e-08]
[1761486289798,3.07472987,4090.9,4090.8,1e-08]
[1761486290017,6.59192987,4090.9,4090.8,1e-08]
[1761486290199,2.44544987,4090.9,4090.8,1e-08]
[1761486290525,0.001,4090.9,4090.8,1e-08]
[1761486290875,0.001,4090.9,4090.8,0.43930001]
[1761486291076,0.001,4090.9,4090.8,1e-08]
[1761486291077,2.95232987,4090.9,4090.8,1e-08]
[1761486292418,6.23332987,4090.9,4090.8,1e-08]
[1761486292620,7.10109688,4090.9,4090.8,1e-08]
[1761486292814,7.35209688,4090.9,4090.8,1e-08]
[1761486293040,8.90729688,4090.9,4090.8,1e-08]
[1761486294353,8.90629688,4090.9,4090.8,1e-08]
[1761486295322,5.37529688,4090.9,4090.8,1e-08]
[1761486295538,8.65229688,4090.9,4090.8,1e-08]
[1761486295979,8.90329688,4090.9,4090.8,1e-08]
[1761486297756,2.95144938,4090.7,4090.6,0.00057138]
[1761486297978,2.95162867,4090.4,4090.3,0.00114366]
[1761486298178,6.22662867,4090.4,4090.3,0.00114366]
[1761486300283,6.34902867,4090.4,4090.3,0.00114366]
[1761486300653,6.60002867,4090.4,4090.3,0.00114366]
[1761486300988,7.74881205,4090.4,4090.3,0.00114366]
[1761486301565,7.74881205,4090.4,4089.1,0.4413]
[1761486301566,0.2189,4089.7,4089.1,0.002]
[1761486301884,2.9523461,4089.2,4089.1,0.002]
[1761486302189,6.2193461,4089.2,4089.1,0.002]
[1761486302546,7.08581937,4089.2,4089.1,0.002]
[1761486302745,7.33741937,4089.2,4089.1,0.002]
[1761486303190,8.89261937,4089.2,4089.1,0.002]
[1761486303391,2.95306395,4088.0,4087.9,0.002]
[1761486303554,6.22206395,4088.0,4087.9,0.002]
[1761486303749,7.08888039,4088.0,4087.9,0.002]
[1761486304255,7.33188039,4088.0,4087.9,0.002]
[1761486305471,8.88708039,4088.0,4087.9,0.002]
[1761486305665,0.50688,4088.0,4087.9,0.002]
[1761486305856,0.2285,4088.8,4087.9,0.002]
[1761486306052,2.44618395,4088.0,4087.9,0.002]
[1761486306389,2.95306395,4088.0,4087.9,0.002]
[1761486307172,3.19606395,4088.0,4087.9,0.002]
[1761486307379,5.6111787,4088.0,4087.9,0.002]
[1761486308802,4.50826395,4088.0,4087.9,0.002]
[1761486309004,5.71618395,4088.0,4087.9,0.002]
[1761486309707,0.243,4088.9,4087.9,0.002]
[1761486309708,1.5552,4089.3,4087.9,0.4744]
[1761486309862,1.11479003,4089.7,4087.9,0.4744]
[1761486310064,2.4453465,4089.4,4087.9,0.4744]
[1761486310261,2.44570087,4088.9,4087.9,0.4744]
[1761486310497,2.44533594,4089.5,4087.9,0.4744]
[1761486310700,2.44492799,4090.1,4087.9,0.4744]
[1761486310701,2.44492799,4090.1,4089.4,0.2227]
[1761486310902,2.1270928,4090.1,4088.0,0.2227]
[1761486311196,2.44592237,4088.5,4088.1,0.4724]
[1761486311398,2.60791896,4090.0,4088.1,0.4724]
[1761486311399,0.50688,4088.6,4088.1,0.4724]
[1761486311698,0.62928,4088.2,4088.1,0.4724]
[1761486311910,2.44546585,4089.3,4088.1,2.0276]
[1761486312069,5.7213465,4089.4,4089.3,0.2227]
[1761486312561,2.4453465,4089.4,4089.3,0.2227]
[1761486312760,2.4453465,4089.4,4089.3,0.6951]
[1761486312996,2.9522265,4089.4,4089.3,0.6951]
[1761486314374,2.44565683,4088.9,4088.7,0.4724]
[1761486314581,0.50688,4089.1,4089.0,0.2227]
[1761486314813,2.95240591,4089.1,4089.0,0.6951]
[1761486315180,2.44552591,4089.1,4089.0,0.6951]
[1761486315379,2.95240591,4089.1,4089.0,0.2227]
[1761486315914,0.50688,4088.2,4088.0,0.2227]
[1761486316112,0.50688,4088.7,4088.0,0.2227]
[1761486316113,2.95300411,4088.1,4088.0,0.2227]
[1761486316682,0.50688,4088.1,4088.0,0.6951]
[1761486316879,3.271,4088.7,4088.0,0.6951]
[1761486316880,5.71680269,4088.7,4088.0,0.6951]
[1761486317103,0.50688,4088.6,4088.1,0.4724]
[1761486317379,0.50688,4088.9,4088.1,0.4724]
[1761486317606,0.50688,4089.0,4088.1,0.4724]
[1761486317805,0.50688,4089.0,4088.2,0.31432385]
[1761486318008,0.50688,4088.7,4088.3,0.4724]
[1761486318208,2.44583894,4088.6,4088.3,0.4724]
[1761486318408,0.50688,4089.6,4088.3,0.4724]
[1761486318607,0.50688,4089.4,4088.3,0.4724]
[1761486318818,0.50688,4089.3,4088.0,0.2227]
[1761486319024,2.95300411,4088.1,4088.0,0.2227]
[1761486319315,2.95300411,4088.1,4087.9,0.002]
[1761486319316,2.95306395,4088.0,4087.9,0.002]
[1761486319491,2.95306395,4088.0,4087.9,0.4744]
[1761486319892,2.95306395,4088.0,4087.9,0.002]
[1761486321425,3.82027725,4088.0,4087.9,0.002]
[1761486321826,0.65829003,4089.1,4087.9,0.4744]
[1761486322053,0.001,4089.1,4087.9,0.4744]
[1761486322217,0.001,4089.1,4088.4,2.44593695]
[1761486322550,0.001,4089.1,4088.6,1.5552]
[1761486322736,0.001,4089.1,4088.5,0.4724]
[1761486322937,0.001,4089.1,4088.5,2.0276]
[1761486323152,0.001,4089.1,4089.0,2.44558571]
[1761486323341,0.001,4089.1,4089.0,2.91798571]
[1761486323919,0.001,4089.1,4089.0,1.5552]
[1761486324122,0.001,4089.1,4089.0,4.47318571]
[1761486324325,0.001,4089.1,4089.0,4.49764156]
[1761486324640,0.001,4089.1,4089.0,5.27802841]
[1761486324847,0.001,4089.1,4089.0,6.5433077]
[1761486325267,0.001,4089.1,4089.0,5.25357256]
[1761486326170,0.001,4089.1,4089.0,1.25278685]
[1761486326448,0.001,4089.1,4089.0,2.91798571]
[1761486326652,0.001,4089.1,4089.0,0.4724]
[1761486327838,0.001,4089.1,4089.0,4.47318571]
[1761486329118,0.001,4089.1,4089.0,0.4724]
[1761486329473,0.001,4089.1,4089.0,2.91798571]
[1761486329676,0.001,4089.1,4089.0,1.16428811]
[1761486329854,0.001,4089.1,4088.6,0.20276]
[1761486330053,0.001,4089.1,4088.8,1.5552]
[1761486330444,0.001,4089.1,4088.9,0.4724]
[1761486331444,0.001,4089.1,4088.9,2.0276]
[1761486331638,0.001,4089.1,4088.9,0.4724]
[1761486331852,0.001,4089.1,4089.0,0.4724]
[1761486332053,0.001,4089.1,4089.0,0.76421533]
[1761486332583,0.001,4089.1,4089.0,2.31941533]
[1761486333671,0.001,4089.1,4089.0,0.76421533]
[1761486333880,0.001,4089.1,4089.0,0.4724]
[1761486335575,0.001,4089.1,4088.9,1.5552]
[1761486335890,0.001,4089.1,4089.0,2.44558571]
[1761486336048,0.001,4090.0,4089.5,2.4452867]
[1761486336377,0.001,4090.0,4089.9,2.44504755]
[1761486336591,0.001,4091.4,4089.9,2.44504755]
[1761486336592,0.001,4091.4,4091.3,2.44421088]
[1761486336800,1.10946859,4094.0,4091.2,0.64928135]
[1761486336801,0.4533,4093.9,4091.2,0.64928135]
[1761486337077,0.4533,4093.9,4091.7,2.44397194]
[1761486337378,2.67606506,4093.3,4091.7,5.11589476]
[1761486337578,0.50688,4093.1,4091.7,5.11589476]
[1761486337747,2.6760519,4093.3,4091.7,5.11589476]
[1761486338149,2.44313931,4093.1,4091.7,5.11589476]
[1761486338350,2.44296421,4093.4,4091.7,5.11589476]
[1761486338576,2.44314914,4093.1,4091.7,5.11589476]
[1761486338779,2.44312796,4093.2,4091.7,5.11589476]
[1761486339378,2.44321196,4093.0,4091.7,2.67192282]
[1761486339582,2.44344483,4092.6,4091.7,2.0276]
[1761486339889,2.4423659,4094.4,4091.7,4.46327194]
[1761486340183,2.44243835,4094.3,4091.9,1.5552]
[1761486340367,2.4423283,4094.5,4092.1,1.5552]
[1761486340549,0.24423283,4094.4,4093.2,2.44301747]
[1761486340749,0.24423283,4094.4,4093.3,2.44300832]
[1761486341077,0.444,4094.9,4093.2,2.44307062]
[1761486341276,0.444,4094.9,4093.3,2.44301084]
[1761486341442,0.444,4094.9,4093.3,1.5552]
[1761486341647,0.444,4094.9,4093.1,0.1108]
[1761486341648,2.44212171,4094.8,4093.1,0.1108]
[1761486341846,0.444,4094.9,4092.7,0.4641]
[1761486341847,2.44273251,4093.8,4092.7,0.4641]
[1761486342080,0.24427325,4093.7,4092.7,2.0193]
[1761486342278,2.67502193,4095.0,4092.4,0.4641]
[1761486342279,0.50688,4094.0,4092.4,0.4641]
[1761486342478,0.50688,4093.8,4092.4,2.0193]
[1761486342776,0.50688,4093.8,4092.5,2.44349223]
[1761486342777,0.50688,4093.6,4092.5,2.44349223]
[1761486342982,0.50688,4093.8,4092.6,1.5552]
[1761486343179,2.44277792,4093.7,4092.5,2.0193]
[1761486343481,2.44285031,4093.6,4092.5,2.90757624]
[1761486343650,2.44291583,4093.5,4092.5,2.90757624]
[1761486343851,0.50688,4093.5,4092.2,0.1296]
[1761486344076,2.44317034,4093.1,4092.2,0.1296]
[1761486344381,2.4433849,4092.7,4091.5,2.44408537]
[1761486344590,0.24433849,4092.6,4091.3,0.4641]
[1761486344759,2.95003972,4093.1,4090.6,0.4641]
[1761486344963,2.44384775,4092.0,4090.7,2.44452163]
[1761486345190,0.50688,4092.9,4090.6,0.4641]
[1761486345568,0.444,4093.1,4090.6,0.4641]
[1761486345569,0.50688,4091.7,4090.6,4.46387103]
[1761486345991,0.1224,4091.3,4090.8,1.6858]
[1761486346318,0.50688,4091.2,4089.2,0.4641]
[1761486346601,2.44477776,4090.4,4089.2,2.909562]
[1761486346918,0.444,4091.1,4089.2,0.4641]
[1761486347062,0.50688,4090.9,4089.2,0.4641]
[1761486347261,0.2341,4091.6,4089.3,2.46986036]
[1761486347463,0.2341,4091.6,4089.0,0.1296]
[1761486347464,0.95088,4091.5,4089.4,0.75749604]
[1761486347696,0.50688,4091.0,4089.5,1.5552]
[1761486347863,0.50688,4090.7,4089.0,0.1296]
[1761486348070,2.44462914,4090.6,4089.3,2.44540143]
[1761486348278,0.50688,4090.7,4089.3,2.44540143]
[1761486348528,2.44468891,4090.5,4089.4,0.40006014]
[1761486348793,0.50688,4090.7,4089.4,0.40006014]
[1761486348996,0.50688,4090.7,4089.0,0.5937]
[1761486348997,2.88856658,4090.8,4089.1,0.02445525]
[1761486349177,0.50688,4090.7,4089.5,2.44522857]
[1761486349375,0.50688,4090.7,4089.4,0.4641]
[1761486349574,2.44474079,4090.5,4089.4,2.90942867]
[1761486349775,0.2341,4089.5,4088.5,0.1306]
[1761486350673,2.44541574,4089.3,4088.5,0.1306]
[1761486350881,0.2341,4089.5,4088.5,0.1306]
[1761486351070,2.4453465,4089.4,4088.5,0.1306]
[1761486351266,2.67939113,4089.5,4088.5,0.1306]
[1761486351465,0.26793911,4089.4,4088.5,0.1306]
[1761486352208,2.67939693,4089.5,4088.5,0.1306]
[1761486352499,0.2341,4089.5,4088.6,1.5552]
[1761486352686,0.2341,4089.5,4088.6,2.44581743]
[1761486352862,0.2341,4089.5,4088.5,0.1306]
[1761486353268,2.44535484,4089.4,4088.5,0.1306]
[1761486353566,0.2341,4089.5,4088.5,0.1306]
[1761486353567,0.26794548,4089.3,4088.5,0.1306]
[1761486353882,0.2341,4089.7,4088.5,0.1306]
[1761486354199,0.2341,4089.7,4088.5,2.57647756]
[1761486354509,0.444,4090.2,4089.3,2.44540066]
[1761486354681,0.2341,4090.9,4088.9,0.02445645]
[1761486355002,0.444,4090.8,4088.9,0.4641]
[1761486355202,2.88851004,4090.8,4089.0,2.44558571]
[1761486355394,0.312261,4090.7,4089.1,0.31542382]
[1761486355590,0.50688,4090.7,4089.2,2.46991728]
[1761486355795,0.444,4090.8,4089.9,2.44501321]
[1761486355992,0.50688,4090.7,4089.8,2.44505315]
[1761486356293,0.1224,4090.2,4089.7,0.1224]
[1761486356494,0.444,4090.6,4089.1,0.41116857]
[1761486356695,0.1224,4089.8,4089.4,2.44533677]
[1761486356893,2.95168067,4090.4,4089.2,2.44541491]
[1761486357205,0.1224,4089.9,4089.3,4.12299997]
[1761486357506,0.2341,4090.8,4089.3,0.1224]
[1761486357704,2.44434945,4091.1,4089.4,2.0193]
[1761486357918,2.73322915,4091.0,4089.5,0.44646834]
[1761486358088,0.50688,4090.9,4089.5,0.91056834]
[1761486358289,0.28883494,4091.0,4089.5,0.91056834]
[1761486358290,0.28883494,4091.0,4089.6,2.0193]
[1761486358605,0.2341,4090.9,4090.1,2.4449001]
[1761486358987,0.2341,4090.9,4090.2,1.6756]
[1761486359189,0.2341,4090.9,4090.2,0.1204]
[1761486359390,0.50688,4090.8,4090.0,2.44498511]
[1761486359598,0.50688,4090.8,4089.8,2.44510734]
[1761486359804,0.50688,4090.6,4089.4,2.44530373]
[1761486360121,0.50688,4090.4,4089.4,2.44529129]
[1761486360523,0.50688,4090.4,4089.1,0.1202]
[1761486360739,2.44527779,4089.6,4088.0,0.4661]
[1761486360921,2.44507628,4089.9,4088.0,0.4661]
[1761486360922,0.2341,4089.5,4088.0,0.4661]
[1761486361431,2.67943722,4089.5,4088.0,0.4661]
[1761486361648,0.50688,4089.3,4088.5,0.002]
[1761486362093,0.444,4089.3,4088.5,0.002]
[1761486362427,0.50688,4089.2,4088.5,0.002]
[1761486362628,0.50688,4089.2,4088.5,2.44787322]
[1761486362806,0.444,4089.3,4088.5,2.44787322]
[1761486363003,0.4371,4089.9,4088.6,0.02445824]
[1761486363203,0.4371,4089.9,4088.5,0.64691235]
[1761486363204,0.50688,4089.7,4088.8,2.44568613]
[1761486363410,2.95205243,4089.7,4088.6,2.44582497]
[1761486363730,0.94398,4089.7,4088.8,2.44569554]
[1761486363926,0.50688,4089.5,4088.5,0.002]
[1761486364128,0.50688,4089.4,4088.5,0.002]
[1761486364342,0.94398,4089.4,4088.5,0.002]
[1761486364543,0.50688,4089.2,4088.5,0.002]
[1761486365020,0.50688,4089.3,4088.5,2.4478352]
[1761486365225,0.2228,4089.8,4088.5,0.002]
[1761486365423,0.2228,4089.8,4088.7,1.5552]
[1761486365424,0.50688,4089.7,4088.7,1.5552]
[1761486365739,0.50688,4089.7,4088.7,2.84604234]
[1761486365932,0.50688,4089.7,4088.7,2.84606195]
[1761486366154,2.95204915,4089.7,4088.7,2.84601023]
[1761486366299,0.50688,4089.7,4088.8,2.44570534]
[1761486366594,3.311,4090.7,4088.9,1.5552]
[1761486366595,0.4371,4090.5,4088.9,1.5552]
[1761486366799,0.4371,4090.5,4089.2,4.00061534]
[1761486366800,2.8818015,4090.5,4089.2,4.00061534]
[1761486367051,0.50688,4089.9,4089.0,0.24023025]
[1761486367242,0.50688,4089.9,4088.6,0.1254]
[1761486367485,0.50688,4089.7,4088.7,2.44576056]
[1761486367674,0.1224,4089.3,4088.8,4.00090506]
[1761486367981,0.1224,4089.3,4088.7,0.1224]
[1761486368185,0.1224,4089.0,4088.5,0.002]
[1761486368546,0.2341,4088.9,4088.5,0.002]
[1761486368747,0.1224,4088.6,4088.5,0.002]
[1761486369287,0.5551,4088.6,4088.5,0.002]
[1761486369863,0.1224,4088.6,4088.5,0.002]
[1761486370261,0.1224,4088.8,4088.5,0.002]
[1761486370695,0.1224,4088.8,4088.7,2.44576515]
[1761486370901,0.1224,4089.1,4088.5,0.574]
[1761486371102,0.1224,4089.1,4088.6,2.44579094]
[1761486371464,0.1224,4089.1,4088.7,2.44576184]
[1761486371796,0.1224,4089.1,4088.9,2.44559173]
[1761486372000,0.1224,4089.1,4088.8,2.85823685]
[1761486372299,0.1224,4089.1,4089.0,2.44558571]
[1761486372482,0.1224,4089.3,4089.0,2.44558571]
[1761486372805,0.1224,4089.3,4088.9,2.44563345]
[1761486373096,0.1224,4089.3,4089.0,0.30035696]
[1761486374389,0.1224,4089.3,4089.0,0.002]
[1761486377101,0.5551,4089.3,4089.0,0.002]
[1761486377764,0.1224,4089.3,4089.0,0.002]
[1761486378180,0.1224,4089.3,4089.0,2.44757374]
[1761486378374,0.1224,4089.3,4089.0,0.002]
[1761486379377,0.4327,4089.2,4089.0,0.002]
[1761486379687,0.50688,4089.1,4089.0,0.002]
[1761486380091,2.44525151,4089.6,4089.0,0.002]
[1761486380092,0.50688,4089.4,4089.0,0.002]
[1761486380394,2.4454131,4089.3,4089.0,0.002]
[1761486380604,0.2228,4089.8,4089.0,0.002]
[1761486380808,0.50688,4089.7,4089.0,0.002]
[1761486380983,0.50688,4089.6,4089.0,0.002]
[1761486381184,0.50688,4089.6,4089.0,2.44757017]
[1761486381403,0.50688,4089.7,4089.0,0.002]
[1761486381799,0.50688,4089.7,4089.0,2.44757957]
[1761486381999,0.50688,4089.7,4089.0,0.002]
[1761486382527,0.50688,4089.7,4089.0,2.44757958]
[1761486382685,2.95206305,4089.7,4089.0,0.002]
[1761486382887,0.50688,4089.7,4089.0,0.002]
[1761486384424,2.44523489,4089.6,4089.0,0.002]
[1761486384778,0.50688,4089.4,4089.0,0.002]
[1761486384996,2.95240591,4089.1,4089.0,0.002]
[1761486385200,3.38510591,4089.1,4089.0,0.002]
[1761486390235,3.50750591,4089.1,4089.0,0.002]
[1761486391106,5.06270591,4089.1,4089.0,0.002]
[1761486391300,7.10637873,4089.1,4089.0,0.002]
[1761486391738,2.95294428,4088.2,4088.1,0.002]
[1761486392108,3.38564428,4088.2,4088.1,0.002]
[1761486393356,5.7209852,4088.4,4087.9,0.002]
[1761486393357,2.95306395,4088.0,4087.9,0.002]
[1761486393714,3.38576395,4088.0,4087.9,0.002]
[1761486393909,3.38576395,4088.0,4087.6,1e-08]
[1761486393910,4.74254348,4087.7,4087.6,1e-08]
[1761486394163,8.67572704,4087.7,4087.6,1e-08]
[1761486394361,8.45024348,4087.7,4087.6,1e-08]
[1761486396151,5.17524348,4087.7,4087.6,1e-08]
[1761486396458,8.44824348,4087.7,4087.6,1e-08]
[1761486396658,9.59601502,4087.7,4087.6,1e-08]
[1761486397535,6.32301502,4087.7,4087.6,1e-08]
[1761486397736,9.59501502,4087.7,4087.6,1e-08]
[1761486398235,9.59201502,4087.7,4087.6,1e-08]
[1761486398919,4.33511502,4087.7,4087.6,1e-08]
[1761486399120,2.95324348,4087.7,4087.6,1e-08]
[1761486399320,3.42744348,4087.7,4087.6,1e-08]
[1761486399615,2.95324348,4087.7,4087.6,1e-08]
[1761486400262,2.44636348,4087.7,4087.6,1e-08]
[1761486400742,3.42744348,4087.7,4087.6,1e-08]
[1761486401808,3.54984348,4087.7,4087.6,1e-08]
[1761486402033,4.53467502,4087.7,4087.6,1e-08]
[1761486402556,0.65818356,4089.5,4087.6,0.47330001]
[1761486402751,0.2342,4089.4,4087.7,0.02446363]
[1761486402925,0.2342,4089.4,4087.6,0.47330001]
[1761486403124,2.44553608,4089.1,4087.6,0.47330001]
[1761486403326,0.61917361,4089.0,4087.6,1e-08]
[1761486403551,2.68056348,4087.7,4087.6,1e-08]
[1761486404437,3.18744348,4087.7,4087.6,1e-08]
[1761486404963,2.44636348,4087.7,4087.6,1e-08]
[1761486405341,6.23124348,4087.7,4087.6,1e-08]
[1761486405533,8.88376783,4087.7,4087.6,1e-08]
[1761486405932,5.60576783,4087.7,4087.6,1e-08]
[1761486406131,8.89376783,4087.7,4087.6,1e-08]
[1761486408151,5.60676783,4087.7,4087.6,1e-08]
[1761486408374,8.89476783,4087.7,4087.6,1e-08]
[1761486408553,8.89176783,4087.7,4087.6,1e-08]
[1761486408757,5.60676783,4087.7,4087.6,1e-08]
[1761486408952,8.89076783,4087.7,4087.6,1e-08]
[1761486409358,2.44736348,4087.7,4087.6,1e-08]
[1761486409756,2.95424348,4087.7,4087.6,1e-08]
[1761486411969,3.42844348,4087.7,4087.6,1e-08]
[1761486412555,3.55084348,4087.7,4087.6,1e-08]
[1761486413182,3.07664348,4087.7,4087.6,1e-08]
[1761486413592,3.55084348,4087.7,4087.6,1e-08]
[1761486413790,4.47875282,4087.7,4087.6,1e-08]
[1761486414773,6.03395282,4087.7,4087.6,1e-08]
[1761486416147,0.50688,4087.6,4086.6,1e-08]
[1761486416347,3.18804209,4086.7,4086.6,1e-08]
[1761486416655,5.30673433,4086.7,4086.6,1e-08]
[1761486416853,7.05053433,4086.7,4086.6,1e-08]
[1761486417083,7.52673433,4086.7,4086.6,1e-08]
[1761486417246,7.52573433,4086.7,4086.6,1e-08]
[1761486417600,2.95384209,4086.7,4086.6,1e-08]
[1761486417741,2.44696209,4086.7,4086.6,1e-08]
[1761486418181,2.95384209,4086.7,4086.6,1e-08]
[1761486418544,1.5870929,4087.7,4086.6,0.47330001]
[1761486418764,2.44643776,4087.6,4086.6,0.47330001]
[1761486418986,2.44682919,4087.0,4086.6,0.47330001]
[1761486419146,0.001,4087.7,4086.6,0.47330001]
[1761486419351,5.74642152,4087.7,4086.6,0.47330001]
[1761486419553,2.44671641,4087.2,4086.6,0.47330001]
[1761486419788,2.4465959,4087.4,4086.6,0.92086938]
[1761486419992,0.001,4087.7,4087.3,0.1108]
[1761486420161,2.44679864,4087.0,4086.6,1e-08]
[1761486420543,0.50688,4087.3,4086.6,0.47330001]
[1761486420760,0.001,4087.7,4087.2,0.1108]
[1761486420966,0.001,4087.7,4087.3,0.02446602]
[1761486421160,0.001,4087.7,4087.3,0.4733]
[1761486421445,0.001,4087.7,4087.4,0.02446543]
[1761486421660,0.001,4087.7,4087.3,2.91988944]
[1761486421886,0.001,4087.7,4087.4,0.4733]
[1761486422450,0.001,4087.7,4087.5,1.5552]
[1761486422653,0.001,4087.7,4087.6,4.43052332]
[1761486422974,3.296,4089.3,4087.6,4.43052332]
[1761486422975,0.65818356,4089.9,4089.3,2.44540514]
[1761486423175,3.31799286,4091.2,4089.8,0.1241]
[1761486423348,2.44474182,4090.5,4089.9,0.02445047]
[1761486423555,0.001,4091.8,4090.0,0.45334987]
[1761486423768,0.001,4091.8,4091.7,0.1108]
[1761486424023,0.001,4092.3,4091.7,0.1108]
[1761486424299,0.001,4092.3,4092.2,0.1225]
[1761486424451,0.001,4092.3,4092.2,0.5514]
[1761486424652,0.65818356,4095.7,4092.2,2.1066]
[1761486424902,0.003,4095.8,4092.2,2.1066]
[1761486424903,0.003,4095.8,4092.3,0.88393113]
[1761486425205,0.003,4095.8,4095.7,0.1777]
[1761486425698,0.003,4095.8,4095.5,0.1777]
[1761486426104,0.003,4095.8,4095.6,0.4289]
[1761486426656,2.44453939,4095.8,4095.6,0.4289]
[1761486426961,2.44237943,4094.4,4094.2,0.6066]
[1761486427188,2.44237943,4094.4,4094.2,0.1777]
[1761486427189,0.1224,4094.3,4094.2,0.1777]
[1761486427705,0.1224,4094.3,4093.6,0.4289]
[1761486427850,0.4416,4094.8,4093.2,0.1777]
[1761486428162,2.44327823,4092.9,4092.4,0.4289]
[1761486428367,2.44329422,4092.9,4092.6,0.1224]
[1761486428556,2.44332542,4092.8,4092.6,0.1224]
[1761486428761,2.44346725,4092.6,4092.4,0.4289]
[1761486429068,2.44327849,4092.9,4092.5,0.1224]
[1761486429069,2.44326476,4092.9,4092.5,0.1224]
[1761486429248,2.44332781,4092.8,4092.6,0.332883]
[1761486429652,0.1224,4092.7,4092.6,0.332883]
[1761486430257,0.50688,4092.7,4092.6,0.332883]
[1761486430468,0.4676,4094.0,4092.6,0.332883]
[1761486430673,0.2187,4094.4,4092.6,0.332883]
[1761486430674,2.44288766,4093.6,4092.6,0.798383]
[1761486430857,2.44285131,4093.6,4092.6,0.798383]
[1761486431058,2.44207434,4094.9,4092.7,0.48993374]
[1761486431259,0.4676,4095.1,4093.0,2.44319501]
[1761486431575,2.44262565,4094.0,4093.1,0.3998395]
[1761486431777,2.44262565,4094.0,4093.1,0.8653395]
[1761486431983,0.50688,4094.6,4093.1,0.4655]
[1761486432483,2.44289605,4093.6,4093.1,0.4655]
[1761486433089,0.50688,4094.3,4092.6,0.332883]
[1761486433293,2.9493596,4094.2,4092.6,0.332883]
[1761486433501,2.44313993,4093.1,4092.6,0.332883]
[1761486433805,0.2187,4093.6,4092.6,0.332883]
[1761486433957,2.44337478,4092.7,4092.6,0.332883]
[1761486435067,2.95025478,4092.7,4092.6,0.332883]
[1761486435461,0.50688,4092.6,4091.3,0.4655]
[1761486435785,2.44385172,4092.0,4090.9,2.44442784]
[1761486436007,0.50688,4092.6,4091.0,0.77426278]
[1761486436315,2.44393403,4091.8,4091.0,0.4655]
[1761486436519,2.44393403,4091.8,4091.1,0.4655]
[1761486437287,0.50688,4092.5,4091.1,0.4655]
[1761486437487,2.44373752,4092.1,4091.2,2.46871332]
[1761486437815,2.44373752,4092.1,4091.3,0.29342133]